fUSD/lending_fUSD_20250804
["ID","MTS","AMOUNT","RATE_DAILY","PERIOD"]
[377295770,1754323856737,-151.0,0.000505,120]
[377295772,1754323856747,-151.0,0.000505,120]
[377295774,1754323856757,-704.590221,0.000505,120]
[377295776,1754323856767,-151.0,0.000505,120]
[377295778,1754323856777,-153.792595,0.000505,120]
[377295780,1754323856787,-151.0,0.000505,120]
[377295782,1754323856797,-151.0,0.000505,120]
[377295784,1754323856807,-151.0,0.000505,120]
[377295786,1754323856817,-151.0,0.000505,120]
[377295788,1754323856827,-1030.083822,0.000505,120]
[377295790,1754323856837,-151.0,0.000505,120]
[377295792,1754323856847,-1030.083822,0.000505,120]
[377295794,1754323856857,-151.0,0.000505,120]
[377295796,1754323856867,-151.0,0.000505,120]
[377295798,1754323856877,-390.157222,0.000505,120]
[377295800,1754323856887,-151.0,0.000505,120]
[377295802,1754323856897,-390.157222,0.000505,120]
[377295804,1754323856906,-151.0,0.000505,120]
[377295807,1754323856916,-344.725477,0.000505,120]
[377295809,1754323856926,-344.725477,0.000505,120]
[377295811,1754323856936,-151.0,0.000505,30]
[377295813,1754323856946,-151.0,0.000505,120]
[377295815,1754323856956,-210.11698,0.000505,120]
[377295817,1754323856965,-210.11698,0.000505,120]
[377295819,1754323856975,-151.0,0.000505,120]
[377295821,1754323856985,-151.0,0.000505,120]
[377295823,1754323856995,-151.0,0.000505,120]
[377295825,1754323857005,-151.0,0.000505,120]
[377295827,1754323857015,-151.0,0.000505,120]
[377295829,1754323857024,-492.852847,0.000505,120]
[377295831,1754323857034,-492.852847,0.000505,120]
[377295833,1754323857043,-2983.99772236,0.000505,2]
[377295835,1754323857052,-319.600664,0.000505,120]
[377295837,1754323857062,-319.600664,0.000505,120]
[377295839,1754323857072,-4000.0,0.0005052,8]
[377295841,1754323857082,-175.56999982,0.0005059,2]
[377295843,1754323857091,-215.77815653,0.0005059,10]
[377295845,1754323857101,-285.94688262,0.0005059,90]
[377295847,1754323857110,-450.0,0.00050616,10]
[377295849,1754323857120,-512.0,0.00050628,20]
[377295851,1754323857130,-863.0,0.00050659,120]
[377295853,1754323857140,-4133.0,0.00050659,120]
[377295855,1754323857150,-6070.0,0.00050659,120]
[377295857,1754323857160,-500.0,0.0005067,7]
[377295859,1754323857171,-400.0,0.00050673,10]
[377295861,1754323857180,-310.58662587,0.00050685,120]
[377295863,1754323857190,-354.48779375,0.00050685,120]
[377295865,1754323857200,-708.0,0.00050685,120]
[377295867,1754323857210,-500.0,0.00050685,120]
[377295869,1754323857220,-150.0,0.00050685,120]
[377295871,1754323857230,-500.0,0.00050685,120]
[377295873,1754323857241,-500.0,0.00050685,120]
[377295875,1754323857251,-500.0,0.00050685,120]
[377295877,1754323857264,-150.0,0.00050685,120]
[377295879,1754323857275,-500.0,0.00050685,120]
[377295882,1754323857286,-331.06216466,0.00050685,120]
[377295884,1754323857296,-500.0,0.00050685,120]
[377295886,1754323857308,-742.0,0.00050685,120]
[377295888,1754323857320,-150.0,0.00050685,120]
[377295890,1754323857330,-500.0,0.00050685,2]
[377295892,1754323857340,-500.0,0.00050685,120]
[377295894,1754323857351,-500.0,0.00050685,120]
[377295896,1754323857361,-500.0,0.00050685,120]
[377295898,1754323857373,-663.0,0.00050685,120]
[377295900,1754323857383,-500.0,0.00050685,120]
[377295902,1754323857397,-557.0,0.00050685,120]
[377295904,1754323857409,-500.0,0.00050685,120]
[377295906,1754323857419,-500.0,0.00050685,120]
[377295908,1754323857430,-500.0,0.00050685,120]
[377295910,1754323857441,-350.0,0.00050685,120]
[377295912,1754323857451,-652231.98979945,0.0005069,120]
[377295914,1754323857462,-250.0,0.0005069,120]
[377295916,1754323857471,-250.0,0.0005069,120]
[377295918,1754323857482,-250.0,0.0005069,120]
[377295920,1754323857493,-250.0,0.0005069,120]
[377295923,1754323857503,-151.0,0.0005069,120]
[377295925,1754323857514,-199.02807,0.0005069,120]
[377295927,1754323857524,-199.02807,0.0005069,120]
[377295929,1754323857534,-151.0,0.0005069,2]
[377295931,1754323857545,-151.0,0.0005069,120]
[377295933,1754323857555,-151.0,0.0005069,120]
[377295935,1754323857567,-151.0,0.0005069,120]
[377295937,1754323857577,-151.0,0.0005069,120]
[377295939,1754323857587,-151.0,0.0005069,120]
[377295941,1754323857598,-151.0,0.0005069,120]
[377295943,1754323857608,-154.868797,0.0005069,120]
[377295945,1754323857619,-151.0,0.0005069,120]
[377295948,1754323857630,-151.0,0.0005069,120]
[377295950,1754323857641,-151.0,0.0005069,120]
[377295952,1754323857651,-151.0,0.0005069,120]
[377295954,1754323857661,-151.0,0.0005069,120]
[377295956,1754323857671,-151.0,0.0005069,120]
[377295958,1754323857681,-151.0,0.0005069,120]
[377295960,1754323857691,-151.754234,0.0005069,120]
[377295962,1754323857702,-151.0,0.0005069,120]
[377295964,1754323857712,-151.0,0.0005069,120]
[377295966,1754323857723,-155.47109,0.0005069,120]
[377295968,1754323857733,-245.186586,0.0005069,120]
[377295970,1754323857743,-245.186586,0.0005069,120]
[377295972,1754323857753,-189.934895,0.0005069,90]
[377295975,1754323857764,-189.934895,0.0005069,90]
[377295977,1754323857774,-280.723601,0.0005069,60]
[377295979,1754323857784,-280.723601,0.0005069,60]
[377295981,1754323857794,-151.0,0.0005069,120]
[377295983,1754323857804,-287.77358,0.0005069,120]
[377295985,1754323857815,-287.77358,0.0005069,120]
[377295987,1754323857825,-151.0,0.0005069,120]
[377295989,1754323857836,-415.606142,0.0005069,120]
[377295991,1754323857848,-415.606142,0.0005069,120]
[377295993,1754323857858,-395.312278,0.0005069,120]
[377295995,1754323857869,-686.715932,0.0005069,120]
[377295997,1754323857879,-395.312287,0.0005069,120]
[377295999,1754323857889,-686.715932,0.0005069,120]
[377296001,1754323857899,-214.661825,0.0005069,120]
[377296004,1754323857910,-214.661825,0.0005069,120]
[377296006,1754323857920,-151.0,0.0005069,120]
[377296008,1754323857930,-1274.135874,0.0005069,20]
[377296010,1754323857940,-1274.135874,0.0005069,20]
[377296012,1754323857951,-153.489794,0.0005069,120]
[377296014,1754323857962,-151.0,0.0005069,60]
[377296016,1754323857973,-200.0,0.0005069,2]
[377296018,1754323857984,-200.0,0.0005069,2]
[377296020,1754323857995,-200.0,0.0005069,2]
[377296022,1754323858006,-200.0,0.0005069,2]
[377296024,1754323858019,-209.496382,0.0005069,2]
[377296026,1754323858031,-151.0,0.0005069,120]
[377296028,1754323858042,-151.0,0.0005069,120]
[377296030,1754323858052,-151.0,0.0005069,120]
[377296033,1754323858063,-512.756802,0.0005069,120]
[377296035,1754323858074,-512.756802,0.0005069,120]
[377296037,1754323858084,-151.0,0.0005069,120]
[377296039,1754323858096,-151.0,0.0005069,120]
[377296041,1754323858106,-309.660303,0.0005069,120]
[377296043,1754323858117,-309.660303,0.0005069,120]
[377296045,1754323858128,-305.054583,0.0005069,120]
[377296047,1754323858138,-305.054583,0.0005069,120]
[377296049,1754323858149,-151.0,0.0005069,120]
[377296051,1754323858159,-151.0,0.0005069,120]
[377296053,1754323858169,-704.590221,0.0005069,120]
[377296055,1754323858179,-151.0,0.0005069,120]
[377296057,1754323858190,-704.590221,0.0005069,120]
[377296059,1754323858201,-151.0,0.0005069,120]
[377296061,1754323858211,-151.0,0.0005069,120]
[377296063,1754323858222,-151.0,0.0005069,120]
[377296065,1754323858233,-203.974972,0.0005069,120]
[377296067,1754323858243,-151.0,0.0005069,120]
[377296069,1754323858253,-1030.083822,0.0005069,120]
[377296071,1754323858263,-151.0,0.0005069,120]
[377296073,1754323858274,-1030.083822,0.0005069,120]
[377296075,1754323858284,-190.35187,0.0005069,120]
[377296077,1754323858294,-151.0,0.0005069,120]
[377296079,1754323858303,-190.35187,0.0005069,120]
[377296081,1754323858318,-151.0,0.0005069,120]
[377296083,1754323858328,-390.157222,0.0005069,120]
[377296086,1754323858338,-151.0,0.0005069,120]
[377296088,1754323858348,-390.157222,0.0005069,120]
[377296090,1754323858358,-151.0,0.0005069,120]
[377296092,1754323858368,-344.725477,0.0005069,120]
[377296094,1754323858378,-344.725477,0.0005069,120]
[377296096,1754323858389,-151.0,0.0005069,120]
[377296098,1754323858399,-151.0,0.0005069,30]
[377296100,1754323858409,-151.0,0.0005069,120]
[377296102,1754323858419,-189.632918,0.0005069,120]
[377296104,1754323858429,-189.632918,0.0005069,120]
[377296106,1754323858439,-151.0,0.0005069,120]
[377296108,1754323858449,-210.11698,0.0005069,120]
[377296109,1754323858459,-210.11698,0.0005069,120]
[377296110,1754323858469,-151.0,0.0005069,120]
[377296111,1754323858480,-151.0,0.0005069,120]
[377296112,1754323858490,-151.0,0.0005069,120]
[377296113,1754323858500,-151.0,0.0005069,120]
[377296114,1754323858510,-151.0,0.0005069,120]
[377296115,1754323858522,-151.0,0.0005069,120]
[377296116,1754323858532,-151.0,0.0005069,120]
[377296117,1754323858542,-355.511064,0.0005069,120]
[377296118,1754323858552,-355.511064,0.0005069,120]
[377296119,1754323858562,-151.0,0.0005069,120]
[377296121,1754323858572,-151.0,0.0005069,120]
[377296123,1754323858582,-151.0,0.0005069,120]
[377296125,1754323858592,-492.852847,0.0005069,120]
[377296127,1754323858602,-492.852847,0.0005069,120]
[377296129,1754323858612,-1402.693651,0.0005069,120]
[377296131,1754323858623,-360.017213,0.0005069,120]
[377296133,1754323858633,-1402.693651,0.0005069,120]
[377296135,1754323858643,-360.017213,0.0005069,120]
[377296137,1754323858653,-153.139476,0.0005069,120]
[377296140,1754323858663,-319.600664,0.0005069,120]
[377296142,1754323858673,-319.600664,0.0005069,120]
[377296144,1754323858683,-499.430676,0.0005069,120]
[377296146,1754323858693,-499.430676,0.0005069,120]
[377296148,1754323858703,-153.035634,0.0005069,120]
[377296150,1754323858713,-153.035634,0.0005069,120]
[377296152,1754323858723,-151.0,0.0005069,120]
[377296154,1754323858733,-411.35,0.000507,14]
[377296156,1754323858743,-500.0,0.000507,10]
[377296158,1754323858754,-1504.73,0.0005071,120]
[377296160,1754323858764,-991.5,0.00050718,120]
[377296162,1754323858775,-394.0,0.0005072,30]
[377296164,1754323858785,-1776.0,0.0005074,120]
[377296166,1754323858794,-199.0,0.00050792,31]
[377296168,1754323858804,-3700.0,0.000508,18]
[377296170,1754323858813,-1052.17165,0.000509,120]
[377296172,1754323858824,-1500.0,0.000509,30]
[377296174,1754323858835,-700.0,0.000509,18]
[377296177,1754323858845,-12547.4227709,0.000509,15]
[377296179,1754323858856,-17904.3439998,0.000509,15]
[377296181,1754323858867,-1947.82835,0.000509,120]
[377296183,1754323858877,-180.45755285,0.000509,120]
[377296185,1754323858888,-500.0,0.00050918,120]
[377296187,1754323858898,-708.0,0.00050959,120]
[377296189,1754323858909,-500.0,0.00050959,120]
[377296191,1754323858919,-150.0,0.00050959,120]
[377296193,1754323858930,-500.0,0.00050959,120]
[377296195,1754323858941,-511.25230042,0.00050959,120]
[377296197,1754323858951,-500.0,0.00050959,120]
[377296199,1754323858962,-201.95167237,0.00050959,120]
[377296201,1754323858973,-500.0,0.00050959,120]
[377296204,1754323858984,-500.0,0.00050959,120]
[377296206,1754323858995,-742.0,0.00050959,120]
[377296208,1754323859006,-270.2289827,0.00050959,120]
[377296210,1754323859019,-500.0,0.00050959,2]
[377296212,1754323859029,-500.0,0.00050959,120]
[377296214,1754323859039,-500.0,0.00050959,120]
[377296216,1754323859050,-500.0,0.00050959,120]
[377296218,1754323859060,-663.0,0.00050959,120]
[377296220,1754323859071,-590.73763727,0.00050959,120]
[377296222,1754323859081,-557.0,0.00050959,120]
[377296225,1754323859092,-500.0,0.00050959,120]
[377296227,1754323859102,-500.0,0.00050959,120]
[377296229,1754323859113,-500.0,0.00050959,120]
[377296231,1754323859123,-1504.73,0.00050984,120]
[377296233,1754323859133,-520.22546928,0.0005099,7]
[377296235,1754323859143,-1000.0,0.00050999,120]
[377296237,1754323859153,-236.97885768,0.00050999,30]
[377296239,1754323859163,-328.34168662,0.00050999,30]
[377296241,1754323859173,-50000.0,0.00051,51]
[377296243,1754323859183,-50000.0,0.00051,61]
[377296245,1754323859194,-2483.35832678,0.00051,120]
[377296368,1754323860407,-1435.27863654,0.00051,120]
[377296427,1754323861085,-284.27816202,0.00043386,28]
[377296428,1754323861094,-1774.41965572,0.00050659,120]
[377296429,1754323861106,-19644.58034428,0.00050659,120]
[377296430,1754323861116,-11029.54424561,0.00051,120]
[377296431,1754323861168,-985051.81879107,0.00051,120]
[377296432,1754323861178,-519.57724414,0.00051,120]
[377296433,1754323861187,-513.75908851,0.00051,120]
[377296434,1754323861198,-500.0,0.00051,120]
[377296435,1754323861207,-1000000.0,0.00051,120]
[377296436,1754323861217,-1000.0,0.00051,120]
[377296437,1754323861227,-808.07335148,0.00051,7]
[377296438,1754323861236,-237.758258,0.00051,120]
[377296439,1754323861246,-199.02807,0.00051,120]
[377296440,1754323861255,-199.02807,0.00051,120]
[377296441,1754323861265,-199.02807,0.00051,120]
[377296442,1754323861275,-199.02807,0.00051,120]
[377296443,1754323861285,-261.15889,0.00051,120]
[377296444,1754323861294,-261.15889,0.00051,120]
[377296445,1754323861303,-151.373839,0.00051,2]
[377296446,1754323861316,-151.0,0.00051,120]
[377296447,1754323861325,-151.0,0.00051,120]
[377296448,1754323861335,-300.592749,0.00051,120]
[377296449,1754323861345,-151.0,0.00051,120]
[377296450,1754323861354,-151.0,0.00051,120]
[377296451,1754323861364,-151.0,0.00051,120]
[377296452,1754323861374,-151.0,0.00051,120]
[377296454,1754323861383,-151.0,0.00051,120]
[377296455,1754323861394,-151.0,0.00051,120]
[377296456,1754323861404,-151.0,0.00051,120]
[377296457,1754323861414,-245.52779,0.00051,120]
[377296458,1754323861531,-151.0,0.00051,120]
[377296459,1754323861542,-151.0,0.00051,120]
[377296460,1754323861552,-151.0,0.00051,120]
[377296461,1754323861564,-151.0,0.00051,120]
[377296462,1754323861573,-151.0,0.00051,120]
[377296463,1754323861583,-151.0,0.00051,120]
[377296464,1754323861592,-151.0,0.00051,120]
[377296465,1754323861601,-151.0,0.00051,120]
[377296466,1754323861611,-151.0,0.00051,120]
[377296467,1754323861620,-151.0,0.00051,120]
[377296468,1754323861629,-151.0,0.00051,120]
[377296469,1754323861639,-151.0,0.00051,120]
[377296470,1754323861648,-151.0,0.00051,120]
[377296471,1754323861657,-151.0,0.00051,120]
[377296472,1754323861667,-151.0,0.00051,120]
[377296473,1754323861676,-151.0,0.00051,120]
[377296474,1754323861685,-151.0,0.00051,120]
[377296475,1754323861695,-151.0,0.00051,120]
[377296476,1754323861704,-245.186586,0.00051,120]
[377296477,1754323861714,-245.186586,0.00051,120]
[377296478,1754323861723,-245.186586,0.00051,120]
[377296479,1754323861733,-245.186586,0.00051,120]
[377296480,1754323861742,-189.934895,0.00051,90]
[377296481,1754323861751,-189.934895,0.00051,90]
[377296482,1754323861761,-189.934895,0.00051,90]
[377296483,1754323861770,-189.934895,0.00051,90]
[377296484,1754323861779,-280.723601,0.00051,60]
[377296485,1754323861789,-280.723601,0.00051,60]
[377296486,1754323861798,-280.723601,0.00051,60]
[377296487,1754323861807,-280.723601,0.00051,60]
[377296488,1754323861819,-287.77358,0.00051,120]
[377296489,1754323861828,-287.77358,0.00051,120]
[377296490,1754323861838,-287.77358,0.00051,120]
[377296491,1754323861847,-287.77358,0.00051,120]
[377296492,1754323861857,-415.606142,0.00051,120]
[377296493,1754323861867,-415.606142,0.00051,120]
[377296494,1754323861876,-415.606142,0.00051,120]
[377296495,1754323861885,-415.606142,0.00051,120]
[377296496,1754323861895,-151.947047,0.00051,120]
[377296497,1754323861905,-151.0,0.00051,120]
[377296498,1754323861915,-211.033082,0.00051,120]
[377296499,1754323861924,-686.715932,0.00051,120]
[377296500,1754323861934,-686.715932,0.00051,120]
[377296501,1754323861944,-686.715932,0.00051,120]
[377296502,1754323861954,-686.71594,0.00051,120]
[377296503,1754323861964,-214.661825,0.00051,120]
[377296504,1754323861974,-214.661825,0.00051,120]
[377296505,1754323861983,-214.661825,0.00051,120]
[377296506,1754323861992,-214.661825,0.00051,120]
[377296507,1754323862002,-151.0,0.00051,120]
[377296508,1754323862011,-151.0,0.00051,120]
[377296509,1754323862022,-151.0,0.00051,120]
[377296510,1754323862031,-151.0,0.00051,120]
[377296511,1754323862040,-151.0,0.00051,120]
[377296512,1754323862050,-151.0,0.00051,120]
[377296513,1754323862059,-151.0,0.00051,120]
[377296514,1754323862069,-267.825695,0.00051,120]
[377296515,1754323862078,-251.565784,0.00051,120]
[377296516,1754323862088,-463.222638,0.00051,120]
[377296517,1754323862097,-463.222638,0.00051,120]
[377296518,1754323862107,-463.222638,0.00051,120]
[377296519,1754323862116,-463.222638,0.00051,120]
[377296520,1754323862126,-1274.135874,0.00051,20]
[377296521,1754323862135,-1274.135874,0.00051,20]
[377296522,1754323862145,-391.487444,0.00051,120]
[377296523,1754323862154,-1274.135874,0.00051,20]
[377296524,1754323862164,-1274.135874,0.00051,20]
[377296525,1754323862174,-391.487444,0.00051,120]
[377296526,1754323862183,-151.0,0.00051,120]
[377296527,1754323862195,-151.0,0.00051,120]
[377296528,1754323862205,-151.0,0.00051,120]
[377296529,1754323862214,-151.0,0.00051,120]
[377296530,1754323862223,-151.0,0.00051,120]
[377296531,1754323862233,-151.0,0.00051,120]
[377296532,1754323862243,-151.0,0.00051,120]
[377296533,1754323862253,-151.0,0.00051,120]
[377296534,1754323862264,-151.0,0.00051,120]
[377296535,1754323862275,-153.03176,0.00051,120]
[377296536,1754323862285,-151.0,0.00051,120]
[377296537,1754323862294,-151.0,0.00051,120]
[377296538,1754323862303,-151.0,0.00051,120]
[377296539,1754323862316,-151.0,0.00051,120]
[377296540,1754323862326,-151.0,0.00051,120]
[377296541,1754323862336,-151.0,0.00051,120]
[377296542,1754323862346,-151.0,0.00051,120]
[377296543,1754323862355,-151.0,0.00051,120]
[377296544,1754323862366,-151.0,0.00051,120]
[377296545,1754323862375,-151.0,0.00051,120]
[377296546,1754323862385,-151.0,0.00051,120]
[377296547,1754323862396,-151.0,0.00051,120]
[377296548,1754323862406,-151.0,0.00051,120]
[377296549,1754323862415,-151.0,0.00051,120]
[377296550,1754323862425,-151.0,0.00051,120]
[377296551,1754323862434,-151.0,0.00051,120]
[377296552,1754323862444,-151.0,0.00051,120]
[377296553,1754323862453,-151.0,0.00051,120]
[377296554,1754323862463,-173.24989,0.00051,120]
[377296555,1754323862472,-173.24989,0.00051,120]
[377296556,1754323862482,-151.0,0.00051,120]
[377296557,1754323862491,-151.0,0.00051,120]
[377296558,1754323862500,-173.24989,0.00051,120]
[377296559,1754323862510,-173.24989,0.00051,120]
[377296560,1754323862519,-151.0,0.00051,120]
[377296561,1754323862529,-151.0,0.00051,120]
[377296562,1754323862538,-856.162897,0.00051,120]
[377296563,1754323862547,-856.162897,0.00051,120]
[377296564,1754323862557,-856.162897,0.00051,120]
[377296565,1754323862569,-856.162897,0.00051,120]
[377296566,1754323862578,-151.0,0.00051,120]
[377296567,1754323862588,-151.0,0.00051,120]
[377296568,1754323862599,-151.0,0.00051,120]
[377296569,1754323862609,-151.0,0.00051,120]
[377296570,1754323862619,-151.0,0.00051,120]
[377296571,1754323862629,-151.0,0.00051,120]
[377296572,1754323862639,-151.0,0.00051,120]
[377296573,1754323862649,-151.0,0.00051,120]
[377296574,1754323862659,-212.483811,0.00051,120]
[377296575,1754323862669,-212.483811,0.00051,120]
[377296576,1754323862679,-328.510009,0.00051,120]
[377296577,1754323862688,-212.483811,0.00051,120]
[377296578,1754323862697,-328.510009,0.00051,120]
[377296579,1754323862707,-212.483811,0.00051,120]
[377296581,1754323862717,-328.510009,0.00051,120]
[377296583,1754323862727,-328.510009,0.00051,120]
[377296585,1754323862736,-151.0,0.00051,120]
[377296587,1754323862746,-151.0,0.00051,120]
[377296589,1754323862755,-151.0,0.00051,120]
[377296591,1754323862765,-151.0,0.00051,120]
[377296593,1754323862775,-151.0,0.00051,120]
[377296595,1754323862784,-151.0,0.00051,120]
[377296597,1754323862794,-151.0,0.00051,120]
[377296599,1754323862803,-151.0,0.00051,120]
[377296601,1754323862813,-151.0,0.00051,120]
[377296603,1754323862822,-151.0,0.00051,120]
[377296605,1754323862831,-151.0,0.00051,120]
[377296606,1754323862840,-151.0,0.00051,120]
[377296608,1754323862849,-188.421888,0.00051,120]
[377296610,1754323862858,-151.0,0.00051,120]
[377296612,1754323862868,-151.0,0.00051,120]
[377296613,1754323862878,-151.0,0.00051,120]
[377296614,1754323862888,-151.0,0.00051,120]
[377296615,1754323862899,-516.197833,0.00051,120]
[377296616,1754323862909,-516.197833,0.00051,120]
[377296617,1754323862919,-516.197833,0.00051,120]
[377296618,1754323862929,-516.197833,0.00051,120]
[377296619,1754323862939,-288.893334,0.00051,120]
[377296620,1754323862948,-288.893334,0.00051,120]
[377296621,1754323862958,-288.893334,0.00051,120]
[377296622,1754323862968,-288.893334,0.00051,120]
[377296623,1754323862977,-156.383977,0.00051,120]
[377296624,1754323862987,-151.0,0.00051,120]
[377296625,1754323862998,-151.0,0.00051,120]
[377296626,1754323863007,-278.955316,0.00051,120]
[377296627,1754323863017,-278.955316,0.00051,120]
[377296628,1754323863029,-278.955316,0.00051,120]
[377296629,1754323863039,-278.955316,0.00051,120]
[377296630,1754323863050,-151.0,0.00051,120]
[377296631,1754323863060,-151.0,0.00051,120]
[377296632,1754323863070,-151.0,0.00051,120]
[377296633,1754323863080,-151.0,0.00051,120]
[377296634,1754323863090,-151.0,0.00051,120]
[377296635,1754323863100,-151.0,0.00051,120]
[377296636,1754323863111,-766.426044,0.00051,120]
[377296637,1754323863121,-766.426044,0.00051,120]
[377296638,1754323863132,-285.780801,0.00051,120]
[377296639,1754323863142,-151.0,0.00051,120]
[377296640,1754323863152,-151.0,0.00051,120]
[377296641,1754323863163,-1314.138074,0.00051,120]
[377296642,1754323863173,-1314.138074,0.00051,120]
[377296643,1754323863184,-1314.138074,0.00051,120]
[377296644,1754323863194,-1314.138074,0.00051,120]
[377296645,1754323863204,-151.0,0.00051,120]
[377296646,1754323863215,-151.0,0.00051,120]
[377296647,1754323863226,-151.0,0.00051,120]
[377296648,1754323863236,-151.0,0.00051,120]
[377296649,1754323863247,-151.0,0.00051,120]
[377296650,1754323863258,-151.0,0.00051,120]
[377296651,1754323863270,-151.0,0.00051,120]
[377296652,1754323863280,-193.034225,0.00051,120]
[377296653,1754323863291,-151.0,0.00051,60]
[377296654,1754323863301,-151.0,0.00051,60]
[377296655,1754323863312,-216.513413,0.00051,120]
[377296656,1754323863325,-151.0,0.00051,60]
[377296657,1754323863335,-216.513413,0.00051,120]
[377296658,1754323863345,-151.0,0.00051,60]
[377296659,1754323863356,-216.513413,0.00051,120]
[377296660,1754323863366,-216.513413,0.00051,120]
[377296661,1754323863377,-151.0,0.00051,120]
[377296662,1754323863387,-151.0,0.00051,120]
[377296663,1754323863399,-151.0,0.00051,120]
[377296664,1754323863409,-151.0,0.00051,120]
[377296665,1754323863419,-151.0,0.00051,120]
[377296666,1754323863430,-228.078563,0.00051,120]
[377296667,1754323863441,-187.016566,0.00051,120]
[377296668,1754323863452,-187.016566,0.00051,120]
[377296669,1754323863462,-187.016566,0.00051,120]
[377296670,1754323863473,-187.016566,0.00051,120]
[377296671,1754323863483,-151.0,0.00051,120]
[377296672,1754323863493,-202.276962,0.00051,120]
[377296673,1754323863504,-556.81586,0.00051,120]
[377296674,1754323863514,-556.81586,0.00051,120]
[377296675,1754323863527,-193.901658,0.00051,120]
[377296676,1754323863538,-193.901658,0.00051,120]
[377296677,1754323863548,-151.0,0.00051,120]
[377296678,1754323863561,-556.81586,0.00051,120]
[377296679,1754323863582,-151.0,0.00051,120]
[377296680,1754323863596,-556.81586,0.00051,120]
[377296681,1754323863607,-193.901658,0.00051,120]
[377296682,1754323863617,-193.901658,0.00051,120]
[377296683,1754323863627,-151.0,0.00051,120]
[377296684,1754323863639,-151.0,0.00051,120]
[377296685,1754323863649,-151.0,0.00051,60]
[377296686,1754323863659,-151.0,0.00051,60]
[377296687,1754323863669,-151.0,0.00051,120]
[377296688,1754323863679,-151.0,0.00051,120]
[377296689,1754323863689,-151.0,0.00051,120]
[377296690,1754323863699,-151.0,0.00051,120]
[377296691,1754323863710,-151.0,0.00051,120]
[377296692,1754323863720,-151.0,0.00051,120]
[377296693,1754323863731,-151.0,0.00051,120]
[377296694,1754323863741,-151.0,0.00051,120]
[377296695,1754323863751,-151.0,0.00051,120]
[377296696,1754323863762,-151.0,0.00051,120]
[377296697,1754323863772,-512.756802,0.00051,120]
[377296698,1754323863783,-512.756802,0.00051,120]
[377296699,1754323863794,-512.756802,0.00051,120]
[377296700,1754323863805,-512.756802,0.00051,120]
[377296701,1754323863815,-269.725433,0.00051,120]
[377296702,1754323863826,-269.725433,0.00051,120]
[377296703,1754323863837,-269.725433,0.00051,120]
[377296704,1754323863847,-269.725433,0.00051,120]